Cogmind - Beta 15 @@@ ROGUE MODE // 2025.07.15 @ 17:56:03 Player: winnking222 Result: Destroyed by EJ-LBA(R) with Subdweller Laser Performance ------------- Evolutions (0) 0 Regions Visited (2) 400 Robots Destroyed (22) 110 Value Destroyed (605) 605 Prototype IDs (2) 40 Alien Tech Used (0) 0 Bonus (0) 0 TOTAL SCORE: 1155 Bonus ------- None Cogmind --------- Core Integrity 0/250 Matter 135/300 Energy 280/280 System Corruption 2% Temperature Cool (6) Movement Treading (240) Ox1 Location -10/Subcaves Parts ------- > --- POWER (1) -------- Heavy Ion Engine > --- PROPULSION (2) --- Improved Treads Improved Treads > --- UTILITY (2) ------ High-capacity Storage Unit Light Armor Plating > --- WEAPON (2) ------- Subdweller Machine Gun Battle Cannon > --- INVENTORY (20) --- Improved Ion Engine Heavy Ion Engine Subdweller Power Source Light Treads Light Treads Improved Treads Wheel Improved Heat Sink High-capacity Matter Pod (104) Subdweller Optics Seismic Detector Seismic Detector Seismic Detector Seismic Detector Makeshift Hacking Suite Subdweller Beam Cannon Subdweller Beam Cannon Assault Rifle Subdweller Machine Gun Peak State ------------ > --- POWER ------------ Heavy Ion Engine > --- PROPULSION ------- Improved Treads Improved Treads > --- UTILITY ---------- High-capacity Storage Unit Light Armor Plating > --- WEAPON ----------- Subdweller Machine Gun Battle Cannon > --- INVENTORY -------- Improved Ion Engine Heavy Ion Engine Subdweller Power Source Light Treads Light Treads Improved Treads Wheel Improved Heat Sink High-capacity Matter Pod Subdweller Optics Seismic Detector Seismic Detector Seismic Detector Seismic Detector Light Armor Plating Makeshift Hacking Suite Subdweller Beam Cannon Subdweller Beam Cannon Assault Rifle Assault Rifle [Rating: 16] Favorites ----------- Power Heavy Ion Engine Engine Heavy Ion Engine Propulsion Improved Treads Treads Improved Treads Utility Seismic Detector Device Seismic Detector Storage High-capacity Storage Unit Protection Light Armor Plating Weapon Assault Rifle Energy Cannon Subdweller Beam Cannon Ballistic Gun Assault Rifle Ballistic Cannon Battle Cannon Build | -11 -10 -10 ------- Run | Yrd Mat Sub Slots Evolved . | . . . Power . | . . . Propulsion . | . . . Utility . | . . . Weapon . | . . . Parts Attached 22 | 7 7 8 Power 4 | 1 2 1 Engine 4 | 1 2 1 Core . | . . . Reactor . | . . . Propulsion 5 | 2 2 1 Treads 5 | 2 2 1 Leg . | . . . Wheel . | . . . Hover . | . . . Flight . | . . . Utility 6 | 2 2 2 Device 1 | 1 . . Storage 3 | 1 2 . Processor . | . . . Hackware . | . . . Protection 2 | . . 2 Artifact . | . . . Weapon 7 | 2 1 4 Energy Gun . | . . . Energy Cannon 2 | . . 2 Ballistic Gun 4 | 2 1 1 Ballistic Cannon 1 | . . 1 Launcher . | . . . Special Weapon . | . . . Impact Weapon . | . . . Slashing Weapon . | . . . Piercing Weapon . | . . . Special Melee Weapon . | . . . Unidentified Prototypes 1 | . 1 . Parts Lost 3 | . . 3 Power 1 | . . 1 Propulsion 1 | . . 1 Utility 1 | . . 1 Weapon . | . . . Highest Loss Streak 1 | . . 1 To Critical Strikes . | . . . Average Backups 13 | 3 12 18 Power 2 | . 2 2 Propulsion 3 | . 3 4 Utility 5 | . 4 7 Weapon 1 | . 1 3 Tool/Special . | . . . Unused Backups 16 | . 2 14 Power 5 | . 2 3 Propulsion 3 | . . 3 Utility 7 | . . 7 Weapon 1 | . . 1 Tool/Special . | . . . Average Slot Usage (%) 99 | . 99 99 Engine 13 | . 14 13 Treads 27 | . 27 28 Device 9 | . 14 1 Storage 14 | . 14 14 Protection 4 | . . 12 Energy Cannon 2 | . . 8 Ballistic Gun 23 | . 27 14 Ballistic Cannon 1 | . . 5 Peak Build Rating 16 | 7 13 16 Average Rating 11 | 5 10 14 On Entrance 6 | . 7 13 Naked Turns . | . . . Heaviest Build 67 | 13 53 67 Greatest Support 46 | 40 46 46 Greatest Overweight (x) 3 | . 3 1 Average Overweight (x) . | . . 1 Largest Inventory Capacity 20 | 8 20 20 Average Capacity 16 | 7 15 20 Most Carried 20 | 5 17 20 Average Carried 13 | 3 12 18 Final Capacity 20 | 8 20 20 Final Carried 19 | 5 17 19 Class Distribution -------------------- 100% | Mutant Dominant Class ---------------- Mutant | -10/Materials Mutant | -10/Subcaves Resources | -11 -10 -10 ----------- Run | Yrd Mat Sub Matter Collected 960 | 336 308 316 Remotely . | . . . Salvage Created 804 | 169 320 315 Parts 44 | 12 19 13 Haulers Intercepted . | . . . Recyclers Shooed . | . . . Parts Field Recycled . | . . . Retrieved Matter . | . . . Parts Self-Destructed . | . . . Prevented . | . . . Kills | -11 -10 -10 ------- Run | Yrd Mat Sub Combat Hostiles Destroyed 13 | . 5 8 Guns 8 | . 5 3 Cannons 5 | . . 5 Classes Destroyed 6 | 2 4 . Worker 1 | . 1 . Tunneler 4 | 4 . . Recycler 1 | 1 . . Watcher 3 | . 3 . Grunt 4 | . 4 . Subdweller 9 | . 1 8 Best Kill Streak 4 | 2 2 4 Combat Bots Only 4 | . 1 4 Max Kills in Single Turn 2 | 1 2 1 Gunslinging . | . . . Exploded . | . . . Melee . | . . . Uniques/NPCs Destroyed . | . . . Combat | -11 -10 -10 -------- Run | Yrd Mat Sub Hostile Shots Fired 81 | . 35 46 Missed 20 | . 14 6 Hits 61 | . 21 40 Projectile 61 | . 21 40 AOE 2 | . . 2 Critical Strikes 2 | . 1 1 Damage Taken 1250 | . 300 950 Core 270 | . 39 231 Absorbed by Shields . | . . . Core Remaining (%) 100 | 100 . . Volleys Fired 98 | 11 30 57 Largest 2 | 2 2 2 Hottest 160 | 40 40 160 Shots Fired 197 | 22 60 115 Gun 140 | 22 60 58 Cannon 57 | . . 57 Launcher . | . . . Special . | . . . Kinetic 167 | 22 60 85 Thermal 30 | . . 30 Explosive . | . . . Electromagnetic . | . . . Robot Hit Streak 13 | 7 5 13 Robot Miss Streak 6 | 3 5 6 Penetration Max . | . . . Secondary Targets 1 | . 1 . Max Gunslinging Chain 1 | . 1 . Shots Hit Robots 101 | 14 36 51 Core Hits 36 | 6 17 13 Critical Kills . | . . . Critical Parts Destroyed . | . . . Critical Strikes . | . . . Melee Attacks . | . . . Impact . | . . . Slashing . | . . . Piercing . | . . . Sneak Attacks . | . . . Combat Hostiles . | . . . Follow-up Attacks . | . . . Damage Inflicted 1722 | 179 467 1076 Guns 1001 | 179 467 355 Cannons 721 | . . 721 Explosions . | . . . Melee . | . . . Ramming . | . . . Kinetic 1147 | 179 467 501 Thermal 575 | . . 575 Explosive . | . . . Electromagnetic . | . . . Impact . | . . . Slashing . | . . . Piercing . | . . . Highest Corruption 2 | . 2 2 Average Corruption 2 | . 2 2 Corruption Purged . | . . . Corruption Blocked . | . . . Effects 14 | . 8 6 Message Errors 1 | . . 1 Matter Fused 7 | . 6 1 Heat Flow Errors 1 | . . 1 Energy Discharges 1 | . 1 . Data Loss (major) 1 | . . 1 Misfires 2 | . . 2 Alerts 1 | . 1 . Overload Shots . | . . . Overflow Damage . | . . . Projectiles . | . . . Explosions . | . . . Melee . | . . . Knockbacks 1 | . . 1 Impact . | . . . Kinetic 1 | . . 1 Secondary . | . . . Self-Inflicted Damage . | . . . Shots . | . . . Rammed . | . . . Targets Rammed . | . . . Kicked . | . . . Crushed . | . . . Highest Temperature 230 | . 21 230 Average Temperature 92 | . 6 107 Received Heat Transfer 366 | . 168 198 Siege Activations . | . . . Martial Activations . | . . . Shielding Activations . | . . . Robots Disrupted . | . . . Combat Hostiles . | . . . Robots Corrupted . | . . . Combat Hostiles . | . . . Parts Fried . | . . . Impact Corruptions . | . . . Robots Melted . | . . . Combat Hostiles . | . . . Parts Melted 1 | . . 1 Heat Transferred 777 | . . 777 Parts Sabotaged . | . . . Parts Stolen . | . . . Parts Stripped . | . . . Power Chain Reactions . | . . . Alert | -11 -10 -10 ------- Run | Yrd Mat Sub Maximum Alert Level . | . . . Low Security (%) 100 | 100 100 . Level 1 . | . . . Level 2 . | . . . Level 3 . | . . . Level 4 . | . . . Level 5 . | . . . High Security . | . . . Max Security . | . . . Peak Influence 36 | 10 36 . Initial . | . . . Average 3 | 1 4 . Influence Increases 178 | 25 153 . Destroy 0b10 Robot/C 80 | . 80 . Destroy 0b10 Robot/NC 45 | 25 20 . Destroy Leader 26 | . 26 . Successful Hack 11 | . 11 . Destroy Structure 1 | . 1 . Lose Combat Pursuer 15 | . 15 . Influence Decreases 178 | 25 153 . Time Decay 178 | 25 153 . Squads Dispatched . | . . . Investigation . | . . . Extermination . | . . . Reinforcement . | . . . Assault . | . . . Garrison . | . . . Intercept . | . . . Searches Triggered . | . . . Construction Impeded . | . . . Haulers Reinforced . | . . . Active Scanning Responses . | . . . Cargo Convoy Interrupts . | . . . Stealth | -11 -10 -10 --------- Run | Yrd Mat Sub Distress Signals 2 | . 2 . Communications Jammed . | . . . Distress Signals . | . . . Times Spotted 18 | . 9 9 Peak Tracking Total 2 | . 2 2 Tactical Retreats 1 | . 1 . Traps | -11 -10 -10 ------- Run | Yrd Mat Sub Traps Triggered 2 | . 2 . Indirectly . | . . . Trap Hack Attempts . | . . . Triggered . | . . . Disarmed . | . . . Reprogrammed . | . . . Reused . | . . . Traps Extracted . | . . . Installed . | . . . Triggered . | . . . Machines | -11 -10 -10 ---------- Run | Yrd Mat Sub Machines Disabled . | . . . Max in Single Turn . | . . . Machines Repaired . | . . . Machines Dismantled . | . . . Machines Sabotaged . | . . . Overloaded Fab Kills . | . . . Hacking | -11 -10 -10 --------- Run | Yrd Mat Sub Machines Accessed 4 | . 4 . Terminals 4 | . 4 . Fabricators . | . . . Repair Stations . | . . . Recycling Units . | . . . Scanalyzers . | . . . Garrison Access . | . . . Total Hacks 8 | . 8 . Successful 6 | . 6 . Failed 2 | . 2 . Catastrophic . | . . . Database Lockouts . | . . . Manual 1 | . 1 . Terminals 8 | . 8 . Fabricators . | . . . Repair Stations . | . . . Recycling Units . | . . . Scanalyzers . | . . . Garrison Access . | . . . Terminal Hacks 6 | . 6 . Robot Analysis 1 | . 1 . Prototype ID Bank 1 | . 1 . Alert Level 1 | . 1 . Locate Traps 1 | . 1 . Zone Layout 2 | . 2 . Fabricator Hacks . | . . . Repair Station Hacks . | . . . Recycling Unit Hacks . | . . . Scanalyzer . | . . . Garrison Access Hacks . | . . . Unauthorized Hacks . | . . . Terminals . | . . . Fabricators . | . . . Repair Stations . | . . . Recycling Units . | . . . Scanalyzers . | . . . Garrison Access . | . . . Data Cores Recovered . | . . . Used . | . . . Hacking Detections 1 | . 1 . Full Trace Events . | . . . Feedback Events . | . . . Feedback Blocked . | . . . Robot Schematics Acquired . | . . . Robots Built . | . . . Authchips . | . . . Time . | . . . Total Robot Build Rating . | . . . Part Schematics Acquired . | . . . Parts Built . | . . . Authchips . | . . . Time . | . . . Total Part Build Rating . | . . . Parts Repaired . | . . . Time . | . . . Parts Recycled . | . . . Recycled Matter . | . . . Retrieved Matter . | . . . Retrieved Components . | . . . Parts Scanalyzed . | . . . Part Schematics Acquired . | . . . Parts Damaged . | . . . Bothacking | -11 -10 -10 ------------ Run | Yrd Mat Sub Used RIF Installer . | . . . Robots Hacked . | . . . Non-combat . | . . . Combat . | . . . Robot Hacks Applied . | . . . Relay Couplers Released . | . . . Fabnet Peak Effective % . | . . . Robots Rewired . | . . . Allies Hacked . | . . . Hacks Repelled . | . . . Allies | -11 -10 -10 -------- Run | Yrd Mat Sub Total Allies . | . . . Largest Group . | . . . Highest-Rated Group . | . . . Highest-Rated Ally . | . . . Total Orders . | . . . Ally Attacks . | . . . Total Damage . | . . . Kills . | . . . Allies Corrupted . | . . . Allies Melted . | . . . Intel | -11 -10 -10 ------- Run | Yrd Mat Sub Active Infowar (turns) 1627 | 84 1466 77 Seismic 1627 | 84 1466 77 Robot Analysis Total 1 | . 1 . Derelict Logs Recovered 1 | . . 1 Drone Launches . | . . . Drone Recoveries . | . . . Exploration | -11 -10 -10 ------------- Run | Yrd Mat Sub Turns Passed 2468 | 196 1466 806 Spaces Moved 889 | 101 534 254 Core 17 | 15 2 . Treads 872 | 86 532 254 Legs . | . . . Wheels . | . . . Hover . | . . . Flight . | . . . Fastest Speed 50 | 50 160 240 Average Speed 201 | 143 194 240 Slowest Speed 240 | 160 240 240 Overloaded Moves . | . . . Propulsion Burnouts . | . . . Robots Hopped . | . . . Potential Cave-ins . | . . . Cave-ins Triggered . | . . . Exploration Rate (%) 32 | 7 68 23 Regions Visited 2 Branch Regions 1 Pre-discovered Areas . | . . . Known Exits Taken . | . . . Unknown Exits Taken 2 | 1 1 . Scrap Searched . | . . . Spaces Dug . | . . . Terrain Destroyed 2 | . . 2 Melee . | . . . Projectile 2 | . . 2 AOE . | . . . Terrain Rammed . | . . . Walls Destroyed . | . . . Machines Disabled . | . . . Actions | -11 -10 -10 --------- Run | Yrd Mat Sub Total 1370 | 130 902 338 Wait 312 | . 302 10 Move 887 | 100 533 254 Hop . | . . . Pick Up 39 | 12 21 6 Fast Attach . | . . . Attach 13 | 7 3 3 Detach . | . . . Swap 12 | . 6 6 Drop 9 | . 7 2 Fire 98 | 11 30 57 Melee . | . . . Ram . | . . . Kick . | . . . Crush . | . . . Escape Stasis . | . . . Rewire . | . . . Trap . | . . . Miscellaneous . | . . . Route ------- -11/Scrapyard -10/Materials (discovered 4 exits: [*Mat x3] / [*Sub]) -10/Subcaves (discovered 2 exits: [*Mat] / Rec) History --------- Turn | Location | Event 22 | -11/Scrapyard | Discovered new exit (range 16) 197 | -11/Scrapyard | Entered Materials 310 | -10/Materials | Build established: Mutant 548 | -10/Materials | Discovered new exit (range 16) 897 | -10/Materials | Derelicts attacked the area 907 | -10/Materials | Discovered new exit (range 10) 1307 | -10/Materials | Discovered new exit (range 7) 1646 | -10/Materials | Discovered new exit (range 8) 1663 | -10/Materials | Entered Subcaves 1664 | -10/Subcaves | Approached by a straggling Scientist 1668 | -10/Subcaves | Discovered new exit (range 15) 1673 | -10/Subcaves | Identified exit to Recycling 1763 | -10/Subcaves | Ambushed by Subdweller buried in earth 1763 | -10/Subcaves | Ambushed by Subdweller buried in earth 1782 | -10/Subcaves | Core integrity fell below 50% 2044 | -10/Subcaves | Shifting Twisted Machinery released Sub. Optics 2066 | -10/Subcaves | Shifting Twisted Machinery released Mak. Hacking Suite 2157 | -10/Subcaves | Shifting Twisted Machinery released Battle Cannon 2168 | -10/Subcaves | Shifting Twisted Machinery released Sub. Machine Gun 2242 | -10/Subcaves | Core integrity fell below 20% 2469 | -10/Subcaves | Destroyed by EJ-LBA(R) with Subdweller Laser Last Messages --------------- 02173_ Acquired Battle Cannon. 02201_ Dropped Assault Rifle. 02222_ JI-EC8(u) tweaks Twisted Machinery. 02243_ YJ-RTW(R) destroyed. 02246_ AJ-OWL(R) knocked back. 02252_ AJ-OWL(R) destroyed. 02255_ Acquired 40 matter. 02255_ JI-EC8(u) tweaks Twisted Machinery. 02257_ Acquired 31 matter. 02258_ JI-EC8(u) tweaks Twisted Machinery. 02264_ Dropped Assault Rifle. 02264_ Acquired Sub. Machine Gun. 02267_ JI-EC8(u) tweaks Twisted Machinery. 02330_ 8YJYWXY:K 02446_ EJ-LBA(R): "SUB#$%&!" 02447_ I5-IYH(u) deconstructs Twisted Machinery. 02455_ Lgt. Armor Plating destroyed. Map ----- +----------------------------------------------------+ | ????????????????????????????????????????????? | | ????????????????????????????????????????????? | | ????????????????????????????????????????????? | | ????????????????????????????????????????????? | | ????????????????????????????????????????????? | | ????????????????????????????????????????????? | | ????????????????????????????????????????????? | | ????????????????????????????????????????????? | | ????????????????????????????????????????????? | | ????????????????????????????????????????????? | | ????????????????????????????????????????????? | | ??????????????????? #??????????????????????? | | ??????????????????? ??????????????????????? | | ?????????????????? ??????????????????????? | | ?????????????????? ??????????????????????? | | ??????????????????# ##????????????????????? | | ??????????????????# #????????????????????? | | ?????????????????? ##???????????????????? | | ??????????????????? ##??????????????????? | | ??????????????????? ###????????????????? | | ??????????????????? #????????????????? | | ???????????????????? #????????????????? | | ???????????????????? #????????????????? | | ????????????????????# #????????????????? | | ???????????????????## #?????????????????? | | ???????????????????#@ %#??????????????????? | | ???????????????????## ##??????????????????? | | ??????????????????### R%#???????????????????? | | ???????????????##?# ##???????????????????? | | ????????????##?# ## % #???????????????????? | | ????????????# $?# ####?????????????????? | | ????????????#$ "##" ##????????????????? | | ?????????????# #????????????????? | | ????????????# # #" #????????????????? | | ???????????????### #????????????????? | | ?????????????????# "##????????????????? | | ?????????????????## " ##?????????????????? | | ??????????????????# ## ##??????????????????? | | ???????????????#### ###???????????????????? | | ???????????????# # ##?????????????????????? | | ???????????????# " ###????????????????????? | | ???????????????#"" "##???????????????????? | | ???????????????## "" "###?????????????????? | | ????????????????# " ""######????????????? | | ??????????????###" " #????????????? | | ??????????????# "" ""#????????????? | | ??????????????## "" ##" #????????????? | | ???????????????# ##?# #???????????? | | ???????????????#"" "#??# ## #??????????? | | ???????????????#"" #???###? ## "??????????? | +----------------------------------------------------+ Best States ------------- Heat Dissipation 25 Energy Generation 14 Energy Capacity 280 Matter Stores 300 Matter Capacity 300 Sight Range 16 Terrain Scan Density 10 Armor Coverage 150 Evasion (%) 50 Recoil Reduction 2 Item Schematics ----------------- None Robot Schematics ------------------ None Fabricated ------------ Nothing Repaired ---------- Nothing Alien Tech Used ----------------- None Achievements -------------- None Challenges ------------ None Game ------ Seed GlidesysThrowingHarness Manual? 0 Play Time 00:15:18 Cumulative 93.5 hours Start 2025.07.15 @ 17:44:21 End 2025.07.15 @ 17:56:03 Sessions 1 Manual Loads 0 Difficulty Rogue Special Mode None Game No. 154 Rogue 154 Adventurer 0 Explorer 0 Win Type - Total 1 Types 1/0/0/0/0/0/0/0/0/0 Lore% 62 Gallery% 51 Achievement% 46 Wizard Run 0 Options --------- Layout 0 ASCII 0 Keyboard 0 Movement Mouse Keybinds 0 Fullscreen 1 Font 16/SmallcapsGlow Map View 75x55 Zoom Use 0% Tactical HUD 1 Map Filters NONE Filters NONE Steam 1 RUN: 1591b5bf-565b-4298-b982-4eda185f5e7c